fUSD/lending_fUSD_20240701
["ID","MTS","AMOUNT","RATE_DAILY","PERIOD"]
[330813502,1719826238292,-180.91863003,0.00013572,2]
[330813503,1719826238303,-543.3375049,0.0001358,2]
[330813504,1719826238315,-348325.31304895,0.00013582,2]
[330813505,1719826238326,-994.777,0.0001362,2]
[330813506,1719826238337,-516.57,0.00013699,2]
[330813507,1719826238349,-9129.77,0.00013773,2]
[330813508,1719826238361,-195.38298828,0.00013799,2]
[330813509,1719826238372,-4596.96009415,0.00013799,2]
[330813510,1719826238383,-250.0,0.00013833,2]
[330813511,1719826238395,-3439.57,0.00013833,2]
[330813512,1719826238406,-17874.33,0.00013899,2]
[330813513,1719826238417,-626.06,0.00013899,2]
[330813514,1719826238428,-100000.0,0.00013899,2]
[330813515,1719826238440,-7500.0,0.00013899,2]
[330813516,1719826238451,-169.21284614,0.00013899,2]
[330813517,1719826238463,-1000.0,0.00013908,2]
[330813518,1719826238475,-499.99,0.00013917,2]
[330813519,1719826238488,-1012.2,0.00013917,2]
[330813520,1719826238500,-5445.83,0.00013917,2]
[330813521,1719826238512,-2679.75,0.00013921,2]
[330813522,1719826238524,-216.03494634,0.00013935,2]
[330813523,1719826238534,-2266.75314779,0.00013935,2]
[330813524,1719826238546,-1000.0,0.00013947,2]
[330813525,1719826238557,-777.81,0.00013965,2]
[330813526,1719826238568,-1000.0,0.00013985,2]
[330813527,1719826238580,-14703.69,0.00013992,2]
[330813528,1719826238593,-548047.94916615,0.00013999,2]
[330813529,1719826238605,-472950.19467044,0.00013999,2]
[330813530,1719826238620,-122347.74709173,0.00013999,2]
[330813531,1719826238635,-14181.69517129,0.00013999,2]
[330813532,1719826238662,-358.33485164,0.00013999,2]
[330813533,1719826238674,-603.45575644,0.00013999,2]
[330813534,1719826238686,-910.60655848,0.00013999,2]
[330813538,1719826238737,-5815.07765433,0.00013999,2]
[330813541,1719826238758,-9881.99222486,0.00013999,2]
[330813543,1719826238770,-7768.1384,0.00013999,2]
[330813545,1719826238782,-7146.2938,0.00013999,2]
[330813547,1719826238795,-18261.65070178,0.00013999,2]
[330813550,1719826238807,-10858.90753303,0.00013999,2]
[330813552,1719826238819,-1062.99965272,0.00013999,2]
[330813554,1719826238833,-672.57,0.00013999,2]
[330813555,1719826239074,-573.2828905,0.00013999,2]
[330813556,1719826239223,-399.70833916,0.00013999,2]
[330813568,1719826240038,-499.30965956,0.00013999,2]
[330813569,1719826240050,-441.48538942,0.00013999,2]
[330813570,1719826240063,-2960.09787178,0.00013999,2]
[330813571,1719826240170,-4197.33883543,0.00013999,2]
[330813603,1719826242687,-925.50594997,0.00013999,2]
[330813604,1719826242700,-259.11055521,0.00013999,2]
[330813605,1719826242809,-10326.60621592,0.00013999,2]
[330813606,1719826242818,-1000.0,0.00014023,2]
[330813607,1719826242828,-155.76,0.00014035,2]
[330813608,1719826242840,-1000.0,0.00014061,2]
[330813609,1719826242849,-1000.0,0.00014099,2]
[330813610,1719826242858,-298.48,0.00014103,2]
[330813611,1719826242867,-344.96,0.00014137,2]
[330813612,1719826242879,-1000.0,0.00014137,2]
[330813613,1719826242888,-1000.0,0.00014175,2]
[330813614,1719826242897,-1000.0,0.00014213,2]
[330813615,1719826242905,-1000.0,0.00014252,2]
[330813616,1719826242915,-1000.0,0.0001429,2]
[330813617,1719826242923,-815.41897793,0.00014328,2]
[330813618,1719826243011,-181.92216141,0.00014328,2]
[330813623,1719826245769,-2.65886066,0.00014328,2]
[330813624,1719826245779,-282.2390816,0.00014366,2]
[330813625,1719826245792,-717.7609184,0.00014366,2]
[330813626,1719826245801,-4596.96009412,0.00014385,2]
[330813627,1719826245810,-1000.0,0.00014404,2]
[330813628,1719826245820,-1000.0,0.00014442,2]
[330813629,1719826245829,-1000.0,0.0001448,2]
[330813630,1719826245839,-1000.0,0.00014519,2]
[330813631,1719826245849,-1000.0,0.00014557,2]
[330813632,1719826245859,-1000.0,0.00014595,2]
[330813633,1719826245868,-1000.0,0.00014633,2]
[330813634,1719826245879,-3426.77898748,0.00015195,2]
[330813635,1719826245898,-2702.84101252,0.00015195,2]
[330813636,1719826245907,-405.02,0.00015195,2]
[330813637,1719826245916,-173.26,0.00015243,2]
[330813638,1719826245924,-4596.96009412,0.00015387,2]
[330813639,1719826245934,-200.0,0.00015447,2]
[330813640,1719826245943,-9999.99,0.00015462,2]
[330813641,1719826245953,-842.78,0.00015486,2]
[330813642,1719826245962,-681.54,0.00015502,2]
[330813643,1719826245972,-250.0,0.00015552,2]
[330813644,1719826245981,-478.44,0.000156,2]
[330813645,1719826245990,-484.13,0.00015654,2]
[330813646,1719826245999,-438.28,0.00016113,2]
[330813647,1719826246009,-181.92216145,0.00016172,2]
[330813648,1719826246019,-195.38298828,0.00016274,2]
[330813649,1719826246029,-4596.96009412,0.00016389,2]
[330813650,1719826246039,-684.37328901,0.00016453,2]
[330813651,1719826246050,-1000.0,0.00016493,2]
[330813652,1719826246059,-2154.75,0.00016679,2]
[330813653,1719826246069,-789.56,0.00016684,2]
[330813654,1719826246078,-192.03,0.00016712,2]
[330813655,1719826246088,-201.42,0.00016774,2]
[330813656,1719826246097,-300.0,0.00016908,2]
[330813657,1719826246106,-184.38,0.00017028,2]
[330813658,1719826246116,-3417.64,0.00017045,2]
[330813659,1719826246128,-169.26,0.00017048,2]
[330813660,1719826246137,-281.89,0.00017127,2]
[330813661,1719826246145,-703.69,0.00017173,2]
[330813662,1719826246154,-4596.96009412,0.00017391,2]
[330813663,1719826246163,-2538.0,0.000174,2]
[330813664,1719826246172,-484.13,0.00017918,2]
[330813665,1719826246182,-169.74477464,0.00018,2]
[330813666,1719826246191,-24641.18328434,0.00018,2]
[330813667,1719826246201,-306.58272941,0.00018,2]
[330813668,1719826246210,-300.0,0.00018278,2]
[330813669,1719826246219,-4596.96009412,0.00018392,2]
[330813670,1719826246228,-155.74816733,0.00018526,2]
[330813671,1719826246238,-1000.0,0.00018555,2]
[330813672,1719826246247,-153.38249542,0.00018556,2]
[330813673,1719826246258,-3955.28644383,0.00018658,2]
[330813674,1719826246517,-2134.3,0.00018658,2]
[330813679,1719826426214,5233.27770051,0.00011199,2]
[330813682,1719826514797,675.88889108,0.00011199,2]
[330813684,1719826588591,721.97950146,0.00011199,2]
[330813685,1719826601912,158915.92005631,0.00011198,2]
[330813686,1719826601941,114497.24597324,0.00011198,2]
[330813689,1719826757470,150.0,0.00011199,2]
[330813690,1719826757491,5.0,0.00011199,2]
[330813694,1719827207496,150.0,0.00011199,2]
[330813695,1719827207519,5.0,0.00011199,2]
[330813696,1719827264332,300.0,0.00011199,2]
[330813701,1719827431899,-950.90717399,0.000118,2]
[330813702,1719827431914,-1586.74442601,0.000118,2]
[330813703,1719827431923,-411.51,0.00012679,2]
[330813704,1719827431933,-150.0,0.00013315,2]
[330813706,1719827431943,-700.1516,0.00013337,2]
[330813708,1719827431953,-300.0,0.00013346,2]
[330813710,1719827431962,-230.49999553,0.00013347,2]
[330813712,1719827434053,-5080.58757125,0.00013347,2]
[330813713,1719827434066,-1357.62885533,0.00013347,2]
[330813714,1719827434078,-625.3983,0.00013347,2]
[330813721,1719827437888,-337.129035,0.00013347,2]
[330813722,1719827437900,-357.89464289,0.00013347,2]
[330813723,1719827437910,-355.89329184,0.00013347,2]
[330813724,1719827438051,-62999.0,0.00013347,2]
[330813737,1719827440260,-20980.50911636,0.00013347,2]
[330813738,1719827440414,-15664.5975918,0.00013347,2]
[330813739,1719827440424,-2777.17187668,0.00013347,2]
[330813740,1719827440434,-499.99,0.00013799,2]
[330813741,1719827440444,-3098.93674584,0.000138,2]
[330813742,1719827440453,-3023.42123919,0.0001387,2]
[330813743,1719827440567,-2468.58893208,0.0001387,2]
[330813775,1719827442967,-4277.97840826,0.0001387,2]
[330813776,1719827442977,-280.752,0.00013899,2]
[330813777,1719827442987,-156.0208,0.00013899,2]
[330813778,1719827442996,-20187.2453,0.00013899,2]
[330813779,1719827443006,-2500.0,0.00013899,2]
[330813780,1719827443016,-3139.96,0.00013899,2]
[330813781,1719827443026,-195.38298828,0.000139,2]
[330813782,1719827443035,-7500.0,0.000139,2]
[330813783,1719827443045,-291.1,0.00013989,3]
[330813784,1719827443056,-18198.75240131,0.00013999,2]
[330813785,1719827443068,-4330.59626476,0.00013999,2]
[330813786,1719827443080,-7160.00000002,0.00013999,2]
[330813787,1719827443108,-976.920342,0.00013999,2]
[330813788,1719827443119,-619.55428415,0.00013999,2]
[330813789,1719827443134,-1896.62724571,0.00013999,2]
[330813792,1719827446062,-2500.0,0.00013999,2]
[330813793,1719827446078,-279.82539136,0.00013999,2]
[330813794,1719827446229,-623.86884684,0.00013999,2]
[330813795,1719827446242,-493.706,0.00013999,2]
[330813796,1719827446390,-95379.64728616,0.00013999,2]
[330813797,1719827549480,150.0,0.00011199,2]
[330813798,1719827549502,150.0,0.00011199,2]
[330813799,1719827549525,150.0,0.00011199,2]
[330813800,1719827549546,150.0,0.00011199,2]
[330813801,1719827549568,150.0,0.00011199,2]
[330813802,1719827549589,150.0,0.00011199,2]
[330813803,1719827549611,150.0,0.00011199,2]
[330813804,1719827549632,150.0,0.00011199,2]
[330813805,1719827549655,150.0,0.00011199,2]
[330813806,1719827549677,150.0,0.00011199,2]
[330813807,1719827549698,150.0,0.00011199,2]
[330813808,1719827549720,150.0,0.00011199,2]
[330813809,1719827549740,150.0,0.00011199,2]
[330813810,1719827549761,286.78903156,0.00011199,2]
[330813811,1719827549788,13187.15094972,0.00011199,2]
[330813813,1719827613596,7549.40604158,0.00011199,2]
[330813814,1719827630043,1072.86532125,0.00011199,2]
[330813815,1719827655345,300.0,0.00011199,2]
[330813816,1719827783337,4449.7269168,0.00011199,2]
[330813817,1719827783916,887.81042537,0.00011199,2]
[330813819,1719827858716,155.88395485,0.00011199,2]
[330813820,1719827884053,303.57548573,0.00011199,2]
[330813821,1719827944567,718.92371031,0.00011199,2]
[330813825,1719828283830,297.0,0.0002215,120]
[330813826,1719828318946,26138.12,0.0002215,120]
[330813827,1719828341995,106624.1466875,0.000221,120]
[330813830,1719828556789,242.12431802,0.00011199,2]
[330813831,1719828560124,-416.98,0.00011312,2]
[330813847,1719828632053,-155.76,0.00012916,2]
[330813848,1719828632064,-250.0,0.00012919,2]
[330813849,1719828632074,-1000.0,0.00013003,2]
[330813850,1719828632085,-298.48,0.00013068,2]
[330813851,1719828632095,-300.0,0.00013144,2]
[330813852,1719828632104,-10356.62364811,0.00013145,2]
[330813853,1719828632116,-598.28837626,0.00013145,2]
[330813854,1719828632129,-12945.08797563,0.00013145,2]
[330813855,1719828632138,-250.0,0.00013179,2]
[330813856,1719828632149,-200.0,0.00013359,2]
[330813857,1719828632159,-169.26,0.00013422,2]
[330813858,1719828632168,-468.0,0.00013447,2]
[330813859,1719828632178,-150.99,0.00013447,2]
[330813860,1719828632187,-416.98,0.00013576,2]
[330813861,1719828632197,-184.37,0.00013616,2]
[330813862,1719828632206,-164.76,0.0001368,2]
[330813863,1719828632215,-344.96,0.00013699,2]
[330813864,1719828632227,-479.16,0.00013699,2]
[330813865,1719828632236,-1501.9314,0.00013798,2]
[330813866,1719828632245,-3379.46893376,0.00013799,2]
[330813867,1719828632254,-178.2,0.00013803,2]
[330813868,1719828632264,-201.42,0.00013822,2]
[330813869,1719828632273,-327.2478,0.0001386,2]
[330813870,1719828632282,-1065.52510734,0.0001386,2]
[330813871,1719828632291,-220.21,0.0001389,2]
[330813872,1719828632300,-87016.3883025,0.00013896,2]
[330813873,1719828632310,-22431.7917,0.00013898,2]
[330813874,1719828632319,-127547.04430956,0.00013898,2]
[330813875,1719828632341,-13487.455323,0.00013898,2]
[330813876,1719828632354,-1052.60047608,0.00013898,2]
[330813894,1719828638285,-3286.5,0.00013898,2]
[330813895,1719828638316,-305.29,0.00013898,2]
[330813896,1719828638492,-665.92877013,0.00013898,2]
[330813905,1719828640157,-6422.88258335,0.00013898,2]
[330813906,1719828640174,-278.59909224,0.00013898,2]
[330813907,1719828640186,-9432.69420486,0.00013898,2]
[330813908,1719828642925,-839.66146824,0.00013898,2]
[330813920,1719828643082,-613.11879279,0.00013898,2]
[330813922,1719828643094,-54376.16772876,0.00013898,2]
[330813924,1719828643105,-3809.56904182,0.00013898,2]
[330813942,1719828643458,-227.0716558,0.00013889,2]
[330813943,1719828643469,-19714.15353805,0.00013898,2]
[330813960,1719828646393,-3168.33467112,0.00013898,2]
[330813961,1719828646402,-100000.0,0.00013899,2]
[330813962,1719828646411,-1000.0,0.00013899,2]
[330813963,1719828646421,-499.99,0.00013899,2]
[330813964,1719828646430,-1662.71,0.00013899,2]
[330813965,1719828646439,-570.68,0.00013899,2]
[330813966,1719828646448,-254.79822837,0.00013899,2]
[330813967,1719828646458,-648.73253098,0.00013899,2]
[330813968,1719828646467,-155.27564206,0.00013899,2]
[330813969,1719828646477,-7500.0,0.000139,2]
[330813970,1719828646488,-277.03532504,0.00013989,2]
[330813971,1719828646497,-915.77168564,0.00013999,2]
[330813972,1719828646567,-704.8,0.00013999,2]
[330813973,1719828646578,-548.2305,0.00013999,2]
[330813974,1719828646591,-90100.06681094,0.00013999,2]
[330813975,1719828646642,-33.87022105,0.00013999,2]
[330813976,1719828736590,165.03,0.00010785,2]
[330813977,1719828782583,15427.22902033,0.00011199,2]
[330813979,1719828803303,150.0,0.00011199,2]
[330813980,1719828803329,818.9624834,0.00011199,2]
[330813981,1719828808436,411.51824924,0.00011199,2]
[330813983,1719828818903,2209.60580718,0.00011199,2]
[330813984,1719828822886,181.09928912,0.00011199,2]
[330813986,1719828824427,552.74071547,0.00011199,2]
[330813987,1719828840035,155.19002135,0.00011199,2]
[330813988,1719828874519,2377.33116314,0.00011199,2]
[330813989,1719828935690,1924.90407806,0.00011199,2]
[330813990,1719828938188,1805.49193075,0.00011199,2]
[330813991,1719828991261,650.99676465,0.00011199,2]
[330813994,1719829039987,159.72076583,0.00011199,2]
[330813996,1719829049290,155.14654103,0.00011199,2]
[330813997,1719829076265,296.78659241,0.00011199,2]
[330813998,1719829081563,328.58563903,0.00011199,2]
[330813999,1719829094282,528.01671537,0.00011199,2]
[330814001,1719829111787,2617.88190555,0.00011199,2]
[330814002,1719829117271,263.4402613,0.00011199,2]
[330814003,1719829125417,165.79,9.933e-05,2]
[330814004,1719829163185,227.0716558,0.00011199,2]
[330814006,1719829171078,498.83598708,0.00011199,2]
[330814007,1719829171101,501.16401292,0.00011199,2]
[330814009,1719829268801,297.64036718,0.00011199,2]
[330814010,1719829276306,297.64036718,0.00011199,2]
[330814011,1719829326818,282.45723578,0.00011199,2]
[330814012,1719829327830,461.68,0.00010108,2]
[330814013,1719829352962,492.03534512,0.00011199,2]
[330814014,1719829362358,271.60383587,0.00011199,2]
[330814015,1719829379805,217.81272639,0.00011199,2]
[330814016,1719829411415,195.9976809,0.00011199,2]
[330814017,1719829427564,155.21711099,0.00011199,2]
[330814018,1719829443506,293.57695537,0.00011199,2]
[330814019,1719829448949,206.49717134,0.00011199,2]
[330814020,1719829451508,190.29648776,0.00011199,2]
[330814021,1719829510976,173.76628846,0.00011199,2]
[330814022,1719829525628,200.0,0.0001092,2]
[330814023,1719829616221,227.0716558,0.00011199,2]
[330814024,1719829630219,155.0,0.00011199,2]
[330814025,1719829650903,318.0418514,0.00011143,2]
[330814027,1719829750115,-171.0,0.00011562,2]
[330814028,1719829750136,-235.7429865,0.00011563,2]
[330814029,1719829750159,-1610.5371135,0.00012014,2]
[330814030,1719829811449,155.0,0.00011199,2]
[330814031,1719829830118,461.67546821,0.00011199,2]
[330814048,1719829832286,-300.0,0.00012013,2]
[330814049,1719829832296,-641.26867698,0.00012014,2]
[330814050,1719829832308,-674.0,0.00012014,2]
[330814052,1719829832332,-9517.13420952,0.00012014,2]
[330814054,1719829832341,-800.0,0.00012029,2]
[330814056,1719829832350,-250.0,0.00012034,2]
[330814058,1719829832359,-250.0,0.00012037,2]
[330814060,1719829832368,-3.62989152,0.00012273,2]
[330814063,1719829832469,-408.988502,0.00012273,2]
[330814064,1719829832478,-457.24,0.00012279,2]
[330814065,1719829832487,-59.36722459,0.00012302,2]
[330814066,1719829832498,-95.63277541,0.00012302,2]
[330814067,1719829832506,-169.15299487,0.00012313,2]
[330814068,1719829832517,-288.08700513,0.00012313,2]
[330814069,1719829832526,-430.24174105,0.00012314,2]
[330814070,1719829832535,-457.24,0.00012346,2]
[330814071,1719829832544,-461.68,0.00012372,2]
[330814072,1719829832553,-457.24,0.0001238,2]
[330814073,1719829832562,-169.26,0.00012405,2]
[330814074,1719829832571,-499.99,0.00012408,2]
[330814075,1719829832580,-135.90125407,0.00012414,2]
[330814076,1719829832592,-321.33874593,0.00012414,2]
[330814077,1719829832602,-457.24,0.00012447,2]
[330814078,1719829832611,-184.38,0.00012448,2]
[330814079,1719829832620,-200.0,0.00012448,2]
[330814080,1719829832630,-457.24,0.00012481,2]
[330814081,1719829832640,-457.24,0.00012515,2]
[330814082,1719829832649,-457.24,0.00012548,2]
[330814083,1719829832659,-457.24,0.00012582,2]
[330814084,1719829832668,-457.24,0.00012616,2]
[330814085,1719829832677,-457.24,0.00012649,2]
[330814086,1719829832687,-348.60125407,0.00012683,2]
[330814087,1719829832699,-108.63874593,0.00012683,2]
[330814088,1719829832710,-457.24,0.00012717,2]
[330814089,1719829832719,-457.24,0.0001275,2]
[330814090,1719829832729,-457.24,0.00012784,2]
[330814091,1719829832739,-457.24,0.00012818,2]
[330814092,1719829832749,-150.0,0.00012823,2]
[330814093,1719829832758,-3190.0,0.00012824,2]
[330814094,1719829832768,-457.24,0.00012851,2]
[330814095,1719829832777,-457.24,0.00012885,2]
[330814096,1719829832786,-457.24,0.00012919,2]
[330814097,1719829832795,-150.0,0.00013013,2]
[330814098,1719829832805,-150.0,0.00013023,2]
[330814099,1719829832815,-150.0,0.00013032,2]
[330814101,1719829832824,-150.0,0.00013041,2]
[330814103,1719829832833,-150.0,0.0001305,2]
[330814105,1719829832843,-150.0,0.0001306,2]
[330814107,1719829832852,-150.0,0.00013069,2]
[330814110,1719829832862,-150.0,0.00013078,2]
[330814113,1719829832871,-420.0,0.00013187,2]
[330814116,1719829832880,-173.22,0.00013288,2]
[330814119,1719829832889,-800.0,0.00013533,2]
[330814122,1719829832898,-377.96,0.00013699,2]
[330814125,1719829832907,-4230.04907986,0.00013798,2]
[330814128,1719829832919,-689.26967312,0.00013798,2]
[330814131,1719829832929,-315.04,0.00013798,2]
[330814133,1719829832945,-31536.505,0.00013798,2]
[330814135,1719829832970,-728.92117432,0.00013798,2]
[330814136,1719829832982,-600.0,0.00013798,2]
[330814137,1719829832993,-9316.5072727,0.00013798,2]
[330814138,1719829833002,-2438.0886,0.00013798,2]
[330814139,1719829833012,-4707.43249711,0.00013799,2]
[330814140,1719829833024,-500.0,0.0001386,2]
[330814141,1719829833034,-193.93948468,0.00013889,2]
[330814142,1719829833044,-2950.13575902,0.00013898,2]
[330814143,1719829833055,-271.2999999,0.00013898,2]
[330814144,1719829833066,-435.0,0.00013898,2]
[330814151,1719829838339,-417.84487201,0.00013506,2]
[330814152,1719829838351,-211.20773307,0.00013506,2]
[330814153,1719829838361,-1621.07468275,0.00013898,2]
[330814154,1719829838373,-1679.233298,0.00013898,2]
[330814155,1719829838382,-38780.766702,0.00013898,2]
[330814156,1719829838394,-4033.22356511,0.00013898,2]
[330814157,1719829838406,-842.77473255,0.00013898,2]
[330814158,1719829838417,-2299.26660088,0.00013898,2]
[330814159,1719829838509,-816.70025,0.00013898,2]
[330814160,1719829838521,-344.64227953,0.00013898,2]
[330814161,1719829838532,-130579.30848771,0.00013898,2]
[330814162,1719829838542,-245000.0,0.00013899,2]
[330814163,1719829838551,-7500.0,0.00013899,2]
[330814164,1719829838560,-202.84047347,0.00013899,2]
[330814165,1719829838570,-398.20530002,0.00013922,2]
[330814166,1719829838579,-167.66416552,0.00013936,2]
[330814167,1719829838588,-155.35951323,0.00013989,2]
[330814168,1719829838598,-156136.48314911,0.00013999,2]
[330814169,1719829838612,-1003.14789302,0.00013999,2]
[330814170,1719829838624,-15480.87706287,0.00013999,2]
[330814171,1719829838635,-531.79482725,0.00013999,2]
[330814211,1719829840526,-1129.01709119,0.00013999,2]
[330814212,1719829840587,-66982.38,0.00013999,2]
[330814213,1719829840794,-1043.21965598,0.00013999,2]
[330814214,1719829840806,-289.38332871,0.00013999,2]
[330814215,1719829840819,-676.47483956,0.00013999,2]
[330814278,1719829843349,-836.60016149,0.00013999,2]
[330814281,1719829843360,-560.7578107,0.00013999,2]
[330814285,1719829843372,-915.25988945,0.00013999,2]
[330814288,1719829843384,-2951.52100116,0.00013999,2]
[330814291,1719829843395,-1126.43968259,0.00013999,2]
[330814316,1719829843537,-1260.5952888,0.00013999,2]
[330814321,1719829843577,-498.7999998,0.00013999,2]
[330814322,1719829843588,-4650.0,0.00013999,2]
[330814323,1719829843599,-771.82060922,0.00013999,2]
[330814324,1719829843610,-569.12206048,0.00013999,2]
[330814326,1719829843621,-10397.62039256,0.00013999,2]
[330814328,1719829843632,-3863.409,0.00013999,2]
[330814330,1719829843644,-19941.22519385,0.00013999,2]
[330814341,1719829843743,-4853.45619711,0.00013999,2]
[330814463,1719829847722,-2621.30636987,0.00013798,2]
[330814468,1719829847930,-3431.15037639,0.00013798,2]
[330814469,1719829847946,-297.63621753,0.00013798,2]
[330814470,1719829848072,-515.80849288,0.00013798,2]
[330814471,1719829848085,-689.31406054,0.00013798,2]
[330814472,1719829848238,-17126.60396848,0.00013798,2]
[330814475,1719829950259,150.5,0.0001499,30]
[330814476,1719829950802,150.5,0.0001498,30]
[330814477,1719829951076,150.5,0.0001499,30]
[330814478,1719829951267,150.5,0.0001497,30]
[330814479,1719829951566,150.5,0.0001498,30]
[330814480,1719829952043,266.0,0.0001497,30]
[330814481,1719830014105,-300.0,0.00011912,2]
[330814482,1719830014126,-14386.5213,0.00011913,2]
[330814484,1719830066457,262.65037956,0.00022,120]
[330814486,1719830070683,150.5,0.0001399,30]
[330814487,1719830070718,286.0,0.0001399,30]
[330814488,1719830071148,187.81,0.0001398,30]
[330814489,1719830071261,286.0,0.0001398,30]
[330814490,1719830071731,286.0,0.0001397,30]
[330814491,1719830074944,181.09928912,0.00011913,2]
[330814492,1719830079475,4054.37941088,0.00011913,2]
[330814493,1719830108786,-2250.92538231,0.00011913,2]
[330814494,1719830108817,-411.51824924,0.00011913,2]
[330814495,1719830108846,-5815.57522318,0.00011913,2]
[330814496,1719830108873,-552.74071547,0.00011913,2]
[330814497,1719830144094,5962.07228059,0.000112,2]
[330814500,1719830398458,-513.16,0.00011629,2]
[330814501,1719830431218,200.0,0.0001399,30]
[330814502,1719830431690,200.0,0.0001398,30]
[330814503,1719830432183,200.0,0.0001397,30]
[330814504,1719830432668,200.0,0.00014982,30]
[330814505,1719830433164,200.0,0.00014972,30]
[330814506,1719830433724,200.0,0.00014962,30]
[330814507,1719830480368,3945.84,0.00011199,2]
[330814508,1719830480394,6595.40799187,0.00011199,2]
[330814510,1719830614615,2377.33116314,0.00011199,2]
[330814512,1719830726402,193.50102493,0.00011199,2]
[330814513,1719830737855,155.5645211,0.00011199,2]
[330814514,1719830738742,487.5,0.00010766,2]
[330814515,1719830791756,150.5,0.0001399,30]
[330814516,1719830792256,150.5,0.0001398,30]
[330814517,1719830792826,150.5,0.0001397,30]
[330814518,1719830793262,150.5,0.00014982,30]
[330814519,1719830793729,205.0,0.00014972,30]
[330814521,1719830896624,789.4336569,0.00011199,2]
[330814522,1719830969097,-155.0,0.00012302,2]
[330814523,1719830969119,-159.68599667,0.00012629,2]
[330814524,1719830969143,-40.89344333,0.0001268,2]
[330814532,1719831032623,-151.39412324,0.00012579,2]
[330814533,1719831032632,-392.70576256,0.0001268,2]
[330814534,1719831032643,-4443.51873846,0.0001268,2]
[330814535,1719831032655,-1442.01221234,0.0001268,2]
[330814536,1719831032666,-3144.4,0.0001268,2]
[330814537,1719831032678,-14436.46984331,0.0001268,2]
[330814538,1719831032688,-169.26,0.0001268,2]
[330814539,1719831032697,-2721.17,0.00012687,2]
[330814540,1719831032706,-500.0,0.00012729,2]
[330814541,1719831032716,-7214.20240905,0.00012729,2]
[330814542,1719831032725,-1627.12,0.00012812,2]
[330814543,1719831032734,-150.0,0.00012849,2]
[330814544,1719831032743,-250.0,0.00012888,2]
[330814545,1719831032753,-1240.62,0.00012888,2]
[330814546,1719831032762,-200.0,0.00012895,2]
[330814547,1719831032771,-487.5,0.00013029,2]
[330814548,1719831032781,-250.0,0.00013077,2]
[330814549,1719831032790,-160.0513,0.00013226,2]
[330814550,1719831032799,-167.5,0.0001332,2]
[330814551,1719831032808,-1000.0,0.00013326,2]
[330814552,1719831032817,-2060.0,0.00013699,2]
[330814553,1719831032827,-277.34,0.00013699,2]
[330814554,1719831032836,-160.20384157,0.0001377,2]
[330814555,1719831032846,-211.75,0.00013793,2]
[330814556,1719831032855,-213.15790435,0.00013797,2]
[330814557,1719831032864,-220318.18051431,0.00013798,2]
[330814558,1719831032873,-68986.5764,0.00013798,2]
[330814559,1719831032882,-11814.0783,0.00013798,2]
[330814560,1719831032891,-5170.30242956,0.00013799,2]
[330814561,1719831032900,-7882.368689,0.000138,2]
[330814562,1719831032910,-650.99676465,0.00013849,2]
[330814563,1719831032919,-772.7065,0.0001386,2]
[330814564,1719831032928,-152984.02240291,0.0001387,2]
[330814565,1719831032938,-544.0998858,0.00013889,2]
[330814566,1719831032947,-7500.0,0.00013899,2]
[330814567,1719831032956,-583.46994771,0.00013899,2]
[330814569,1719831032966,-196.52952353,0.00013899,2]
[330814571,1719831032974,-2206.64692185,0.000139,2]
[330814573,1719831032984,-167.12050596,0.000139,2]
[330814575,1719831032994,-850.91931701,0.000139,2]
[330814577,1719831033002,-554.40676402,0.000139,2]
[330814579,1719831033011,-1798.22923144,0.000139,2]
[330814581,1719831033020,-227.0716558,0.00013989,2]
[330814583,1719831033029,-309.48520799,0.00013989,2]
[330814585,1719831033038,-225.79305905,0.00013998,2]